fUSD/lending_fUSD_20241219
["ID","MTS","AMOUNT","RATE_DAILY","PERIOD"]
[346020407,1734630639061,-500.0,0.00023447,4]
[346020408,1734630639070,-784.45,0.00023447,4]
[346020409,1734630639080,-1107.44,0.00023447,4]
[346020410,1734630639094,-515.62,0.00023447,4]
[346020411,1734630639104,-500.0,0.00023447,4]
[346020412,1734630639114,-500.0,0.00023447,4]
[346020413,1734630639124,-500.0,0.00023447,4]
[346020414,1734630639134,-500.0,0.00023447,4]
[346020415,1734630639144,-500.0,0.00023447,4]
[346020416,1734630639153,-275.81568536,0.00023447,4]
[346020417,1734630639169,-500.0,0.00023447,4]
[346020418,1734630639181,-500.0,0.00023447,4]
[346020419,1734630639192,-500.0,0.00023447,4]
[346020420,1734630639204,-500.0,0.00023447,4]
[346020421,1734630639217,-500.0,0.00023447,4]
[346020422,1734630639229,-500.0,0.00023447,4]
[346020423,1734630639241,-500.0,0.00023447,4]
[346020424,1734630639253,-504.25,0.00023447,4]
[346020425,1734630639264,-500.0,0.00023447,4]
[346020426,1734630639274,-500.0,0.00023447,4]
[346020427,1734630639285,-580.79,0.00023447,4]
[346020428,1734630639297,-500.0,0.00023447,4]
[346020429,1734630639308,-264.33393,0.00023488,7]
[346020430,1734630639320,-12467.0,0.00023518,2]
[346020431,1734630639332,-1008.93749566,0.0002352,2]
[346020432,1734630639343,-2500.0,0.00023621,2]
[346020433,1734630639355,-981.12,0.00023621,2]
[346020434,1734630639366,-264.33393,0.00023688,7]
[346020435,1734630639378,-1008.93749566,0.00023692,2]
[346020436,1734630639390,-164.87,0.00023698,2]
[346020437,1734630639403,-500.0,0.00023721,4]
[346020438,1734630639417,-500.0,0.00023721,4]
[346020439,1734630639430,-500.0,0.00023721,4]
[346020440,1734630639440,-500.0,0.00023721,4]
[346020441,1734630639453,-448.1796412,0.00023721,4]
[346020442,1734630639464,-500.0,0.00023721,4]
[346020443,1734630639475,-651.1,0.00023721,4]
[346020444,1734630639485,-500.0,0.00023721,4]
[346020445,1734630639495,-500.0,0.00023721,4]
[346020446,1734630639506,-500.0,0.00023721,4]
[346020447,1734630639517,-554.05,0.00023721,4]
[346020448,1734630639529,-500.0,0.00023721,4]
[346020449,1734630639540,-500.0,0.00023721,4]
[346020450,1734630639552,-500.0,0.00023721,4]
[346020451,1734630639562,-500.0,0.00023721,4]
[346020452,1734630639573,-560.82,0.00023721,4]
[346020453,1734630639586,-500.0,0.00023721,4]
[346020454,1734630639597,-500.0,0.00023721,4]
[346020455,1734630639609,-500.0,0.00023721,4]
[346020456,1734630639620,-500.0,0.00023721,4]
[346020457,1734630639631,-500.0,0.00023721,4]
[346020458,1734630639644,-500.0,0.00023721,4]
[346020459,1734630639655,-500.0,0.00023721,4]
[346020460,1734630639671,-500.0,0.00023721,4]
[346020461,1734630639683,-500.0,0.00023721,4]
[346020462,1734630639694,-500.0,0.00023721,4]
[346020463,1734630639707,-500.0,0.00023721,4]
[346020464,1734630639717,-500.0,0.00023721,4]
[346020465,1734630639728,-500.0,0.00023721,4]
[346020466,1734630639741,-600.15244423,0.00023721,4]
[346020467,1734630639752,-500.0,0.00023721,4]
[346020468,1734630639763,-500.0,0.00023721,4]
[346020469,1734630639774,-500.0,0.00023721,4]
[346020470,1734630639786,-784.45,0.00023721,4]
[346020471,1734630639796,-1107.44,0.00023721,4]
[346020472,1734630639807,-515.62,0.00023721,4]
[346020473,1734630639818,-500.0,0.00023721,4]
[346020474,1734630639829,-568.8,0.00023721,4]
[346020475,1734630639841,-500.0,0.00023721,4]
[346020476,1734630639853,-500.0,0.00023721,4]
[346020477,1734630639865,-500.0,0.00023721,4]
[346020478,1734630639876,-500.0,0.00023721,4]
[346020479,1734630639887,-500.0,0.00023721,4]
[346020480,1734630639897,-500.0,0.00023721,4]
[346020481,1734630639907,-500.0,0.00023721,4]
[346020482,1734630639923,-500.0,0.00023721,4]
[346020483,1734630639933,-500.0,0.00023721,4]
[346020484,1734630639944,-500.0,0.00023721,4]
[346020485,1734630639953,-504.25,0.00023721,4]
[346020486,1734630639963,-500.0,0.00023721,4]
[346020487,1734630639974,-500.0,0.00023721,4]
[346020488,1734630639985,-580.79,0.00023721,4]
[346020489,1734630639997,-384.283,0.0002375,2]
[346020490,1734630640010,-25283.69812695,0.00023847,5]
[346020491,1734630640022,-200.0,0.00023858,5]
[346020492,1734630640033,-25283.69812695,0.00023862,5]
[346020493,1734630640043,-1008.93749566,0.00023865,2]
[346020494,1734630640054,-200.0,0.00023865,5]
[346020495,1734630640064,-25283.69812695,0.00023866,5]
[346020496,1734630640074,-329.98966104,0.00023873,5]
[346020497,1734630640084,-329.98966104,0.0002388,5]
[346020498,1734630640095,-329.98966104,0.0002388,5]
[346020499,1734630640109,-25283.69812695,0.00023881,5]
[346020500,1734630640121,-25283.69812695,0.00023882,5]
[346020501,1734630640133,-329.98966104,0.00023883,5]
[346020502,1734630640146,-329.98966104,0.00023883,5]
[346020503,1734630640157,-25283.69812695,0.00023883,5]
[346020504,1734630640172,-329.98966104,0.0002389,5]
[346020505,1734630640184,-150.0,0.00023963,2]
[346020506,1734630640195,-500.0,0.00023993,4]
[346020507,1734630640205,-500.0,0.00023993,4]
[346020508,1734630640216,-500.0,0.00023993,4]
[346020509,1734630640227,-500.0,0.00023993,4]
[346020510,1734630640237,-500.0,0.00023993,4]
[346020512,1734630640248,-500.0,0.00023993,4]
[346020514,1734630640258,-500.0,0.00023993,4]
[346020516,1734630640269,-500.0,0.00023993,4]
[346020517,1734630640279,-500.0,0.00023993,4]
[346020518,1734630640290,-500.0,0.00023993,4]
[346020520,1734630640300,-500.0,0.00023993,4]
[346020521,1734630640311,-500.0,0.00023993,4]
[346020522,1734630640321,-506.46,0.00023993,4]
[346020526,1734630640332,-500.0,0.00023993,4]
[346020530,1734630640343,-500.0,0.00023993,4]
[346020531,1734630640353,-500.0,0.00023993,4]
[346020533,1734630640364,-500.0,0.00023993,4]
[346020535,1734630640374,-500.0,0.00023993,4]
[346020536,1734630640384,-500.0,0.00023994,4]
[346020537,1734630640395,-491.52,0.00023994,4]
[346020538,1734630640405,-500.0,0.00023994,4]
[346020539,1734630640420,-560.98,0.00023994,4]
[346020540,1734630640429,-500.0,0.00023994,4]
[346020541,1734630640439,-500.0,0.00023994,4]
[346020542,1734630640449,-500.0,0.00023994,4]
[346020543,1734630640459,-500.0,0.00023994,4]
[346020544,1734630640469,-543.88169119,0.00023994,4]
[346020545,1734630640480,-500.0,0.00023994,4]
[346020546,1734630640493,-506.24788827,0.00023994,4]
[346020547,1734630640504,-500.0,0.00023994,4]
[346020548,1734630640515,-500.0,0.00023994,4]
[346020549,1734630640525,-500.0,0.00023994,4]
[346020550,1734630640536,-500.0,0.00023994,4]
[346020551,1734630640546,-500.0,0.00023994,4]
[346020552,1734630640556,-500.0,0.00023994,4]
[346020553,1734630640567,-500.0,0.00023994,4]
[346020554,1734630640578,-414.74181776,0.00023994,4]
[346020555,1734630640587,-500.0,0.00023994,4]
[346020556,1734630640598,-500.0,0.00023994,4]
[346020557,1734630640608,-500.0,0.00023994,4]
[346020558,1734630640618,-500.0,0.00023994,4]
[346020559,1734630640629,-500.0,0.00023994,4]
[346020560,1734630640639,-500.0,0.00023994,4]
[346020561,1734630640650,-500.0,0.00023994,4]
[346020562,1734630640660,-500.0,0.00023994,4]
[346020563,1734630640676,-500.0,0.00023994,4]
[346020564,1734630640686,-500.0,0.00023994,4]
[346020565,1734630640697,-500.0,0.00023994,4]
[346020566,1734630640707,-500.0,0.00023994,4]
[346020567,1734630640718,-500.0,0.00023994,4]
[346020568,1734630640728,-500.0,0.00023994,4]
[346020569,1734630640739,-500.0,0.00023994,4]
[346020570,1734630640750,-716.59,0.00023994,4]
[346020571,1734630640760,-500.0,0.00023994,4]
[346020572,1734630640770,-249.03,0.00023994,4]
[346020573,1734630640781,-500.0,0.00023994,4]
[346020574,1734630640791,-500.0,0.00023994,4]
[346020575,1734630640802,-500.0,0.00023994,4]
[346020576,1734630640813,-500.0,0.00023994,4]
[346020577,1734630640823,-500.0,0.00023994,4]
[346020578,1734630640833,-500.0,0.00023994,4]
[346020579,1734630640843,-500.0,0.00023994,4]
[346020580,1734630640853,-500.0,0.00023994,4]
[346020581,1734630640864,-657.88,0.00023994,4]
[346020583,1734630640875,-1095.65,0.00023994,4]
[346020585,1734630640886,-500.0,0.00023994,4]
[346020587,1734630640896,-397.86663802,0.00023994,4]
[346020589,1734630640906,-500.0,0.00023994,4]
[346020591,1734630640920,-500.0,0.00023994,4]
[346020593,1734630640930,-500.0,0.00023994,4]
[346020595,1734630640941,-500.0,0.00023994,4]
[346020597,1734630640951,-500.0,0.00023994,4]
[346020599,1734630640962,-500.0,0.00023994,4]
[346020601,1734630640973,-500.0,0.00023994,4]
[346020603,1734630640984,-500.0,0.00023994,4]
[346020605,1734630640994,-500.0,0.00023994,4]
[346020608,1734630641005,-500.0,0.00023994,4]
[346020610,1734630641016,-500.0,0.00023994,4]
[346020612,1734630641028,-361.69,0.00023994,4]
[346020614,1734630641039,-500.76,0.00023994,4]
[346020616,1734630641051,-652.1,0.00023994,4]
[346020618,1734630641062,-500.0,0.00023994,4]
[346020620,1734630641075,-500.0,0.00023994,4]
[346020622,1734630641091,-500.0,0.00023994,4]
[346020624,1734630641104,-500.0,0.00023994,4]
[346020626,1734630641116,-500.0,0.00023994,4]
[346020630,1734630641128,-500.0,0.00023994,4]
[346020633,1734630641141,-500.0,0.00023994,4]
[346020636,1734630641153,-500.0,0.00023994,4]
[346020639,1734630641164,-500.0,0.00023994,4]
[346020641,1734630641187,-192.90185474,0.00023994,4]
[346020644,1734630641198,-500.0,0.00023994,4]
[346020648,1734630641209,-500.0,0.00023994,4]
[346020651,1734630641221,-500.0,0.00023994,4]
[346020654,1734630641232,-500.0,0.00023994,4]
[346020657,1734630641242,-500.0,0.00023994,4]
[346020660,1734630641253,-500.0,0.00023994,4]
[346020663,1734630641264,-500.0,0.00023994,4]
[346020665,1734630641276,-500.0,0.00023994,4]
[346020667,1734630641286,-500.0,0.00023994,4]
[346020669,1734630641298,-500.0,0.00023994,4]
[346020671,1734630641309,-500.0,0.00023994,4]
[346020674,1734630641320,-431.8800776,0.00023994,4]
[346020676,1734630641330,-500.0,0.00023994,4]
[346020678,1734630641341,-500.0,0.00023994,4]
[346020680,1734630641351,-500.0,0.00023994,4]
[346020682,1734630641361,-500.0,0.00023994,4]
[346020707,1734630641609,-500.0,0.00023994,4]
[346020709,1734630641619,-500.0,0.00023994,4]
[346020711,1734630641628,-500.0,0.00023994,4]
[346020713,1734630641638,-500.0,0.00023994,4]
[346020715,1734630641647,-500.0,0.00023994,4]
[346020717,1734630641656,-500.0,0.00023994,4]
[346020719,1734630641669,-522.5,0.00023995,4]
[346020720,1734630641680,-500.0,0.00023995,4]
[346020722,1734630641689,-500.0,0.00023995,4]
[346020724,1734630641699,-500.0,0.00023995,4]
[346020726,1734630641708,-500.0,0.00023995,4]
[346020728,1734630641718,-651.1,0.00023995,4]
[346020730,1734630641728,-500.0,0.00023995,4]
[346020732,1734630641738,-500.0,0.00023995,4]
[346020734,1734630641748,-201.08245239,0.00023995,4]
[346020736,1734630641757,-554.05,0.00023995,4]
[346020738,1734630641767,-500.0,0.00023995,4]
[346020740,1734630641776,-500.0,0.00023995,4]
[346020742,1734630641785,-500.0,0.00023995,4]
[346020744,1734630641795,-500.0,0.00023995,4]
[346020746,1734630641804,-560.82,0.00023995,4]
[346020748,1734630641814,-500.0,0.00023995,4]
[346020750,1734630641824,-500.0,0.00023995,4]
[346020752,1734630641834,-500.0,0.00023995,4]
[346020754,1734630641843,-500.0,0.00023995,4]
[346020756,1734630641852,-500.0,0.00023995,4]
[346020758,1734630641862,-500.0,0.00023995,4]
[346020760,1734630641872,-500.0,0.00023995,4]
[346020762,1734630641881,-500.0,0.00023995,4]
[346020763,1734630641890,-500.0,0.00023995,4]
[346020765,1734630641900,-291.56503711,0.00023995,4]
[346020767,1734630641909,-500.0,0.00023995,4]
[346020769,1734630641923,-194.3891303,0.00023995,4]
[346020771,1734630641932,-379.44,0.00023995,4]
[346020773,1734630641942,-185.44,0.00023995,4]
[346020775,1734630641951,-500.0,0.00023995,4]
[346020777,1734630641960,-500.0,0.00023995,4]
[346020779,1734630641970,-784.45,0.00023995,4]
[346020781,1734630641979,-1107.44,0.00023995,4]
[346020783,1734630641988,-515.62,0.00023995,4]
[346020785,1734630641997,-500.0,0.00023995,4]
[346020787,1734630642006,-500.0,0.00023995,4]
[346020789,1734630642016,-500.0,0.00023995,4]
[346020791,1734630642028,-500.0,0.00023995,4]
[346020793,1734630642038,-618.66538999,0.00023995,4]
[346020795,1734630642047,-500.0,0.00023995,4]
[346020797,1734630642058,-500.0,0.00023995,4]
[346020799,1734630642067,-500.0,0.00023995,4]
[346020801,1734630642076,-500.0,0.00023995,4]
[346020803,1734630642086,-500.0,0.00023995,4]
[346020805,1734630642095,-500.0,0.00023995,4]
[346020807,1734630642105,-504.25,0.00023995,4]
[346020809,1734630642117,-497.36100198,0.00023995,4]
[346020811,1734630642126,-500.0,0.00023995,4]
[346020813,1734630642135,-580.79,0.00023995,4]
[346020814,1734630642145,-1008.93749566,0.00024037,2]
[346020816,1734630642156,-150.0,0.00024072,2]
[346020818,1734630642165,-264.33393,0.00024088,7]
[346020820,1734630642178,-241.48414065,0.00024168,2]
[346020822,1734630642188,-1008.93749566,0.0002421,2]
[346020824,1734630642199,-241.48414056,0.00024249,2]
[346020826,1734630642209,-1121.0,0.0002425,2]
[346020828,1734630642219,-500.0,0.00024267,4]
[346020830,1734630642228,-500.0,0.00024267,4]
[346020832,1734630642238,-500.0,0.00024267,4]
[346020834,1734630642247,-500.0,0.00024267,4]
[346020836,1734630642256,-500.0,0.00024267,4]
[346020838,1734630642266,-433.66900004,0.00024267,4]
[346020840,1734630642275,-500.0,0.00024267,4]
[346020842,1734630642284,-385.60898307,0.00024267,4]
[346020844,1734630642292,-500.0,0.00024267,4]
[346020846,1734630642302,-500.0,0.00024267,4]
[346020848,1734630642311,-500.0,0.00024267,4]
[346020849,1734630642321,-500.0,0.00024268,4]
[346020851,1734630642329,-312.32,0.00024268,4]
[346020853,1734630642339,-540.02,0.00024268,4]
[346020855,1734630642348,-500.0,0.00024268,4]
[346020857,1734630642357,-500.0,0.00024268,4]
[346020859,1734630642367,-500.0,0.00024268,4]
[346020861,1734630642376,-500.0,0.00024268,4]
[346020863,1734630642385,-500.0,0.00024268,4]
[346020865,1734630642394,-500.0,0.00024268,4]
[346020867,1734630642404,-500.0,0.00024268,4]
[346020868,1734630642413,-500.0,0.00024268,4]
[346020869,1734630642427,-500.0,0.00024268,4]
[346020870,1734630642437,-500.0,0.00024268,4]
[346020871,1734630642447,-500.0,0.00024268,4]
[346020872,1734630642456,-500.0,0.00024268,4]
[346020873,1734630642466,-500.0,0.00024268,4]
[346020874,1734630642475,-500.0,0.00024268,4]
[346020875,1734630642485,-500.0,0.00024268,4]
[346020876,1734630642494,-500.0,0.00024268,4]
[346020877,1734630642504,-500.0,0.00024268,4]
[346020879,1734630642513,-500.0,0.00024268,4]
[346020881,1734630642521,-503.45609238,0.00024268,4]
[346020883,1734630642531,-500.0,0.00024268,4]
[346020885,1734630642541,-500.0,0.00024268,4]
[346020887,1734630642551,-500.0,0.00024268,4]
[346020889,1734630642559,-500.0,0.00024268,4]
[346020891,1734630642568,-500.0,0.00024268,4]
[346020893,1734630642578,-582.17,0.00024268,4]
[346020895,1734630642587,-500.0,0.00024268,4]
[346020897,1734630642596,-220.74118749,0.00024268,4]
[346020899,1734630642605,-558.6734791,0.00024268,4]
[346020901,1734630642614,-222.2,0.00024268,4]
[346020903,1734630642623,-500.0,0.00024268,4]
[346020905,1734630642632,-560.40417694,0.00024268,4]
[346020907,1734630642642,-500.0,0.00024268,4]
[346020909,1734630642651,-500.0,0.00024268,4]
[346020911,1734630642660,-500.0,0.00024268,4]
[346020913,1734630642673,-500.0,0.00024268,4]
[346020915,1734630642683,-600.14432149,0.00024268,4]
[346020917,1734630642692,-500.0,0.00024268,4]
[346020919,1734630642702,-500.0,0.00024268,4]
[346020921,1734630642711,-500.0,0.00024268,4]
[346020923,1734630642720,-716.59,0.00024268,4]
[346020925,1734630642728,-500.0,0.00024268,4]
[346020927,1734630642738,-500.0,0.00024268,4]
[346020929,1734630642747,-500.0,0.00024268,4]
[346020931,1734630642757,-500.0,0.00024268,4]
[346020933,1734630642766,-500.0,0.00024268,4]
[346020935,1734630642776,-500.0,0.00024268,4]
[346020937,1734630642785,-500.0,0.00024268,4]
[346020938,1734630642795,-657.88,0.00024268,4]
[346020940,1734630642804,-1095.65,0.00024268,4]
[346020942,1734630642813,-571.38,0.00024268,4]
[346020944,1734630642822,-500.0,0.00024268,4]
[346020946,1734630642832,-543.89896377,0.00024268,4]
[346020948,1734630642842,-500.0,0.00024268,4]
[346020950,1734630642851,-500.0,0.00024268,4]
[346020952,1734630642861,-375.95,0.00024268,4]
[346020955,1734630642870,-500.0,0.00024268,4]
[346020957,1734630642880,-500.0,0.00024268,4]
[346020959,1734630642890,-500.0,0.00024268,4]
[346020961,1734630642899,-500.0,0.00024268,4]
[346020963,1734630642909,-503.08,0.00024268,4]
[346020965,1734630642921,-500.0,0.00024268,4]
[346020967,1734630642930,-500.0,0.00024268,4]
[346020968,1734630642940,-500.0,0.00024268,4]
[346020971,1734630642950,-500.0,0.00024268,4]
[346020973,1734630642959,-500.0,0.00024268,4]
[346020975,1734630642969,-500.0,0.00024268,4]
[346020977,1734630642977,-500.76,0.00024268,4]
[346020979,1734630642988,-652.1,0.00024268,4]
[346020981,1734630642997,-299.94,0.00024268,4]
[346020982,1734630643007,-791.0,0.00024268,4]
[346020984,1734630643016,-482.93,0.00024268,4]
[346020986,1734630643026,-500.0,0.00024268,4]
[346020988,1734630643035,-500.0,0.00024268,4]
[346020990,1734630643045,-500.0,0.00024268,4]
[346020992,1734630643054,-880.98,0.00024268,4]
[346020994,1734630643064,-500.0,0.00024268,4]
[346020996,1734630643073,-500.0,0.00024268,4]
[346020998,1734630643083,-500.0,0.00024268,4]
[346021001,1734630643098,-500.0,0.00024268,4]
[346021003,1734630643107,-500.0,0.00024268,4]
[346021005,1734630643116,-339.14391267,0.00024268,4]
[346021007,1734630643125,-500.0,0.00024268,4]
[346021009,1734630643135,-500.0,0.00024268,4]
[346021011,1734630643144,-921.61,0.00024268,4]
[346021012,1734630643153,-500.0,0.00024268,4]
[346021015,1734630643163,-181.26597265,0.00024268,4]
[346021016,1734630643176,-500.0,0.00024268,4]
[346021019,1734630643185,-307.92252629,0.00024268,4]
[346021021,1734630643195,-500.0,0.00024268,4]
[346021022,1734630643204,-500.0,0.00024268,4]
[346021024,1734630643221,-244.52930925,0.00024268,4]
[346021027,1734630643247,-500.0,0.00024268,4]
[346021029,1734630643258,-500.0,0.00024268,4]
[346021031,1734630643267,-500.0,0.00024268,4]
[346021035,1734630643278,-500.0,0.00024268,4]
[346021038,1734630643289,-500.0,0.00024268,4]
[346021040,1734630643299,-500.0,0.00024268,4]
[346021043,1734630643309,-500.0,0.00024268,4]
[346021046,1734630643319,-500.0,0.00024268,4]
[346021049,1734630643330,-500.0,0.00024268,4]
[346021054,1734630643340,-500.0,0.00024269,4]
[346021056,1734630643350,-500.0,0.00024269,4]
[346021058,1734630643360,-500.0,0.00024269,4]
[346021060,1734630643369,-500.0,0.00024269,4]
[346021063,1734630643378,-651.1,0.00024269,4]
[346021066,1734630643388,-500.0,0.00024269,4]
[346021069,1734630643397,-500.0,0.00024269,4]
[346021073,1734630643406,-554.05,0.00024269,4]
[346021076,1734630643419,-500.0,0.00024269,4]
[346021080,1734630643429,-200.39020952,0.00024269,4]
[346021083,1734630643439,-500.0,0.00024269,4]
[346021086,1734630643448,-500.0,0.00024269,4]
[346021089,1734630643458,-560.82,0.00024269,4]
[346021092,1734630643468,-500.0,0.00024269,4]
[346021094,1734630643477,-500.0,0.00024269,4]
[346021099,1734630643487,-500.0,0.00024269,4]
[346021100,1734630643496,-500.0,0.00024269,4]
[346021103,1734630643506,-500.0,0.00024269,4]
[346021106,1734630643515,-164.57152874,0.00024269,4]
[346021111,1734630643525,-500.0,0.00024269,4]
[346021113,1734630643534,-500.0,0.00024269,4]
[346021116,1734630643543,-500.0,0.00024269,4]
[346021118,1734630643552,-500.0,0.00024269,4]
[346021120,1734630643561,-500.0,0.00024269,4]
[346021122,1734630643570,-500.0,0.00024269,4]
[346021124,1734630643579,-784.45,0.00024269,4]
[346021126,1734630643589,-1107.44,0.00024269,4]
[346021127,1734630643597,-515.62,0.00024269,4]
[346021129,1734630643607,-500.0,0.00024269,4]
[346021131,1734630643617,-500.0,0.00024269,4]
[346021133,1734630643626,-500.0,0.00024269,4]
[346021135,1734630643635,-631.67293915,0.00024269,4]
[346021137,1734630643644,-500.0,0.00024269,4]
[346021139,1734630643654,-500.0,0.00024269,4]
[346021141,1734630643663,-500.0,0.00024269,4]
[346021143,1734630643676,-500.0,0.00024269,4]
[346021145,1734630643685,-500.0,0.00024269,4]
[346021147,1734630643695,-500.0,0.00024269,4]
[346021149,1734630643704,-504.25,0.00024269,4]
[346021151,1734630643713,-500.0,0.00024269,4]
[346021152,1734630643723,-580.79,0.00024269,4]
[346021154,1734630643732,-264.33393,0.00024288,7]
[346021156,1734630643743,-241.48414056,0.00024331,2]
[346021157,1734630643752,-2070.3,0.00024351,2]
[346021160,1734630643762,-1008.93749566,0.00024382,2]
[346021161,1734630643771,-182.29,0.00024388,2]
[346021163,1734630643781,-241.48414056,0.00024412,2]
[346021165,1734630643791,-264.33393,0.00024488,7]
[346021167,1734630643800,-241.48414056,0.00024493,2]
[346021169,1734630643809,-1121.0,0.000245,2]
[346021172,1734630643819,-500.0,0.00024541,4]
[346021174,1734630643828,-500.0,0.00024541,4]
[346021175,1734630643838,-500.0,0.00024541,4]
[346021176,1734630643847,-500.0,0.00024541,4]
[346021177,1734630643857,-500.0,0.00024541,4]
[346021178,1734630643866,-500.0,0.00024541,4]
[346021179,1734630643875,-500.0,0.00024541,4]
[346021180,1734630643885,-500.0,0.00024541,4]
[346021181,1734630643894,-408.87,0.00024542,4]
[346021182,1734630643904,-500.0,0.00024542,4]
[346021184,1734630643913,-500.0,0.00024542,4]
[346021186,1734630643927,-500.0,0.00024542,4]
[346021188,1734630643936,-500.0,0.00024542,4]
[346021190,1734630643945,-500.0,0.00024542,4]
[346021192,1734630643955,-223.11,0.00024542,4]
[346021194,1734630643964,-334.13,0.00024542,4]
[346021196,1734630643974,-437.36629379,0.00024542,4]
[346021197,1734630643983,-500.0,0.00024542,4]
[346021199,1734630643992,-500.0,0.00024542,4]
[346021201,1734630644002,-500.0,0.00024542,4]
[346021202,1734630644011,-500.0,0.00024542,4]
[346021203,1734630644021,-500.0,0.00024542,4]
[346021204,1734630644031,-262.12,0.00024542,4]
[346021205,1734630644040,-500.0,0.00024542,4]
[346021206,1734630644050,-500.0,0.00024542,4]
[346021207,1734630644059,-500.0,0.00024542,4]
[346021208,1734630644068,-716.59,0.00024542,4]
[346021209,1734630644078,-500.0,0.00024542,4]
[346021210,1734630644088,-500.0,0.00024542,4]
[346021211,1734630644097,-542.07991476,0.00024542,4]
[346021212,1734630644108,-500.0,0.00024542,4]
[346021213,1734630644118,-500.0,0.00024542,4]
[346021214,1734630644127,-500.0,0.00024542,4]
[346021215,1734630644135,-500.0,0.00024542,4]
[346021216,1734630644144,-657.88,0.00024542,4]
[346021217,1734630644155,-1095.65,0.00024542,4]
[346021218,1734630644164,-500.0,0.00024542,4]
[346021219,1734630644179,-500.0,0.00024542,4]
[346021220,1734630644189,-500.0,0.00024542,4]
[346021221,1734630644200,-500.0,0.00024542,4]
[346021222,1734630644209,-500.0,0.00024542,4]
[346021223,1734630644218,-500.0,0.00024542,4]
[346021224,1734630644228,-500.0,0.00024542,4]
[346021225,1734630644237,-503.08,0.00024542,4]
[346021226,1734630644246,-500.0,0.00024542,4]
[346021228,1734630644256,-500.0,0.00024542,4]
[346021230,1734630644266,-500.0,0.00024542,4]
[346021232,1734630644275,-500.0,0.00024542,4]
[346021234,1734630644284,-500.0,0.00024542,4]
[346021236,1734630644293,-500.0,0.00024542,4]
[346021238,1734630644303,-500.76,0.00024542,4]
[346021240,1734630644311,-652.1,0.00024542,4]
[346021242,1734630644320,-791.0,0.00024542,4]
[346021243,1734630644329,-500.0,0.00024542,4]
[346021245,1734630644338,-500.0,0.00024542,4]
[346021247,1734630644347,-500.0,0.00024542,4]
[346021249,1734630644356,-880.98,0.00024542,4]
[346021251,1734630644365,-500.0,0.00024542,4]
[346021253,1734630644375,-500.0,0.00024542,4]
[346021255,1734630644384,-500.0,0.00024542,4]
[346021257,1734630644393,-500.0,0.00024542,4]
[346021259,1734630644402,-500.0,0.00024542,4]
[346021261,1734630644411,-425.0167991,0.00024542,4]
[346021263,1734630644427,-500.0,0.00024542,4]
[346021265,1734630644436,-921.61,0.00024542,4]
[346021267,1734630644447,-500.0,0.00024542,4]
[346021269,1734630644456,-500.0,0.00024542,4]
[346021271,1734630644466,-500.0,0.00024542,4]